[Event "Live Chess"]
[Site "Chess.com"]
[Date "2024.06.01"]
[Round "-"]
[White "PureDashingOctopus"]
[Black "jonny_dzz"]
[Result "1-0"]
[WhiteElo "2253"]
[BlackElo "1863"]
[TimeControl "300"]
[EndTime "11:29:45 PDT"]
[Termination "PureDashingOctopus won by checkmate"]

1. e4 {[%clk 0:04:58.6]} 1... e6 {[%clk 0:04:58]} 2. d4 {[%clk 0:04:57.4]} 2...
d5 {[%clk 0:04:57]} 3. Nd2 {[%clk 0:04:56.8]} 3... Nf6 {[%clk 0:04:54.8]} 4. e5
{[%clk 0:04:55.5]} 4... Nfd7 {[%clk 0:04:53.9]} 5. Bd3 {[%clk 0:04:55]} 5... c5
{[%clk 0:04:53.1]} 6. c3 {[%clk 0:04:54.1]} 6... Nc6 {[%clk 0:04:51.4]} 7. Ne2
{[%clk 0:04:53.5]} 7... Qb6 {[%clk 0:04:50.7]} 8. Nf3 {[%clk 0:04:51.9]} 8...
cxd4 {[%clk 0:04:47.1]} 9. cxd4 {[%clk 0:04:50.4]} 9... Bb4+ {[%clk 0:04:45.4]}
10. Bd2 {[%clk 0:04:49.3]} 10... O-O {[%clk 0:04:40.1]} 11. O-O {[%clk
0:04:47.6]} 11... f6 {[%clk 0:04:35]} 12. exf6 {[%clk 0:04:44]} 12... Nxf6
{[%clk 0:04:33.8]} 13. Ng3 {[%clk 0:04:42.5]} 13... Nxd4 {[%clk 0:04:24.2]} 14.
Nxd4 {[%clk 0:03:48.1]} 14... Qxd4 {[%clk 0:04:21.3]} 15. Be3 {[%clk 0:03:42.7]}
15... Qxb2 {[%clk 0:03:55.1]} 16. Rb1 {[%clk 0:03:41.4]} 16... Qa3 {[%clk
0:03:53.1]} 17. Rb3 {[%clk 0:03:28.4]} 17... Qa5 {[%clk 0:03:49.9]} 18. Nh5
{[%clk 0:03:25.6]} 18... Be7 {[%clk 0:03:39.2]} 19. Nxf6+ {[%clk 0:03:22.6]}
19... Bxf6 {[%clk 0:03:36.5]} 20. Qh5 {[%clk 0:03:22]} 20... g6 {[%clk
0:03:29.2]} 21. Bxg6 {[%clk 0:03:03.1]} 21... hxg6 {[%clk 0:03:27.7]} 22. Qxg6+
{[%clk 0:03:03]} 22... Bg7 {[%clk 0:03:26.7]} 23. Bh6 {[%clk 0:03:02.5]} 23...
Qc7 {[%clk 0:03:17.3]} 24. Rg3 {[%clk 0:03:00.8]} 24... Rf7 {[%clk 0:03:15.8]}
25. Bxg7 {[%clk 0:02:59.5]} 25... Rxg7 {[%clk 0:03:14]} 26. Qe8+ {[%clk
0:02:58.6]} 26... Kh7 {[%clk 0:03:07.4]} 27. Rh3# {[%clk 0:02:57.6]} 1-0

[Event "Live Chess"]
[Site "Chess.com"]
[Date "2024.06.01"]
[Round "-"]
[White "powerchs"]
[Black "NottheBishopSacrifice"]
[Result "0-1"]
[WhiteElo "1250"]
[BlackElo "2295"]
[TimeControl "300"]
[EndTime "11:29:51 PDT"]
[Termination "NottheBishopSacrifice won by checkmate"]

1. e4 {[%clk 0:04:56.5]} 1... c6 {[%clk 0:04:58.5]} 2. d4 {[%clk 0:04:55]} 2...
d5 {[%clk 0:04:58.1]} 3. Nc3 {[%clk 0:04:53.7]} 3... dxe4 {[%clk 0:04:57.2]} 4.
Nxe4 {[%clk 0:04:52.6]} 4... Nf6 {[%clk 0:04:56.8]} 5. Nxf6+ {[%clk 0:04:50.9]}
5... exf6 {[%clk 0:04:56.7]} 6. Ne2 {[%clk 0:04:48.7]} 6... Bd6 {[%clk
0:04:55.8]} 7. Bf4 {[%clk 0:04:46.5]} 7... O-O {[%clk 0:04:52.1]} 8. Bxd6 {[%clk
0:04:44.7]} 8... Qxd6 {[%clk 0:04:52]} 9. Qd2 {[%clk 0:04:38.9]} 9... Be6 {[%clk
0:04:48.9]} 10. Qf4 {[%clk 0:04:31.5]} 10... Qb4+ {[%clk 0:04:44.7]} 11. Qd2
{[%clk 0:04:26.8]} 11... Qxb2 {[%clk 0:04:42.9]} 12. Rc1 {[%clk 0:04:25.2]}
12... Qxa2 {[%clk 0:04:41.4]} 13. g3 {[%clk 0:04:23.9]} 13... Bd5 {[%clk
0:04:39.6]} 14. Rg1 {[%clk 0:04:19.7]} 14... Nd7 {[%clk 0:04:38.6]} 15. Bg2
{[%clk 0:04:18.3]} 15... Rfe8 {[%clk 0:04:35]} 16. Kf1 {[%clk 0:04:16.4]} 16...
Bc4 {[%clk 0:04:33.5]} 17. Re1 {[%clk 0:04:12.5]} 17... Nb6 {[%clk 0:04:30.5]}
18. Bf3 {[%clk 0:04:10.7]} 18... Bd5 {[%clk 0:04:18.3]} 19. Kg2 {[%clk
0:04:09.1]} 19... Bxf3+ {[%clk 0:04:16.9]} 20. Kxf3 {[%clk 0:04:08]} 20... Qd5+
{[%clk 0:04:16.6]} 21. Kg4 {[%clk 0:04:05]} 21... Qe6+ {[%clk 0:04:08]} 22. Kf4
{[%clk 0:04:02.4]} 22... g5+ {[%clk 0:04:05.6]} 23. Kf3 {[%clk 0:04:01]} 23...
Qe4# {[%clk 0:04:05.2]} 0-1

[Event "Live Chess"]
[Site "Chess.com"]
[Date "2024.06.01"]
[Round "-"]
[White "ogpin"]
[Black "dhairyapandyauk"]
[Result "1-0"]
[WhiteElo "2216"]
[BlackElo "1715"]
[TimeControl "300"]
[EndTime "11:30:00 PDT"]
[Termination "ogpin won by checkmate"]

1. a4 {[%clk 0:04:59]} 1... a5 {[%clk 0:04:57.4]} 2. Ra3 {[%clk 0:04:58.9]} 2...
e5 {[%clk 0:04:54.1]} 3. Re3 {[%clk 0:04:56.9]} 3... Nc6 {[%clk 0:04:51.4]} 4.
g3 {[%clk 0:04:56.3]} 4... d5 {[%clk 0:04:50.3]} 5. d4 {[%clk 0:04:53.7]} 5...
Be6 {[%clk 0:04:40]} 6. dxe5 {[%clk 0:04:48]} 6... Bc5 {[%clk 0:04:37.9]} 7. Bg2
{[%clk 0:04:44.6]} 7... Bxe3 {[%clk 0:04:35.8]} 8. Bxe3 {[%clk 0:04:44.5]} 8...
Nge7 {[%clk 0:04:34]} 9. Nf3 {[%clk 0:04:28.5]} 9... Nf5 {[%clk 0:04:28]} 10.
Bc5 {[%clk 0:04:26.5]} 10... b6 {[%clk 0:04:23.3]} 11. Ba3 {[%clk 0:04:25.7]}
11... Nb4 {[%clk 0:04:17.1]} 12. O-O {[%clk 0:04:21.4]} 12... c5 {[%clk
0:04:13.5]} 13. c3 {[%clk 0:04:16.1]} 13... Nc6 {[%clk 0:04:12.6]} 14. Qc2
{[%clk 0:04:11.3]} 14... O-O {[%clk 0:04:11.5]} 15. Nbd2 {[%clk 0:04:10.1]}
15... d4 {[%clk 0:04:07.4]} 16. cxd4 {[%clk 0:04:06.2]} 16... Ncxd4 {[%clk
0:04:04.5]} 17. Nxd4 {[%clk 0:04:01.8]} 17... Nxd4 {[%clk 0:04:03.6]} 18. Qd3
{[%clk 0:03:51.5]} 18... Bd5 {[%clk 0:03:58]} 19. e4 {[%clk 0:03:48.3]} 19...
Bc6 {[%clk 0:03:48.4]} 20. Nc4 {[%clk 0:03:44.2]} 20... Bxa4 {[%clk 0:03:42.9]}
21. Nd6 {[%clk 0:03:43.6]} 21... Qe7 {[%clk 0:03:33.3]} 22. f4 {[%clk
0:03:36.6]} 22... f6 {[%clk 0:03:31.2]} 23. Nf5 {[%clk 0:03:34.2]} 23... Nxf5
{[%clk 0:03:26.6]} 24. exf5 {[%clk 0:03:34.1]} 24... fxe5 {[%clk 0:03:11.8]} 25.
Bxa8 {[%clk 0:03:29.8]} 25... Bd7 {[%clk 0:02:53.6]} 26. fxe5 {[%clk 0:03:23.3]}
26... Rxa8 {[%clk 0:02:50.6]} 27. Qd5+ {[%clk 0:03:22.1]} 27... Qf7 {[%clk
0:02:46.8]} 28. Qxa8+ {[%clk 0:03:21.4]} 28... Qf8 {[%clk 0:02:45.8]} 29. Qxf8+
{[%clk 0:03:20.3]} 29... Kxf8 {[%clk 0:02:45.5]} 30. e6 {[%clk 0:03:20.2]} 30...
Bc6 {[%clk 0:02:44.5]} 31. b3 {[%clk 0:03:17.7]} 31... Ke7 {[%clk 0:02:44]} 32.
Bb2 {[%clk 0:03:16.9]} 32... b5 {[%clk 0:02:39]} 33. Bxg7 {[%clk 0:03:16]} 33...
a4 {[%clk 0:02:38.2]} 34. bxa4 {[%clk 0:03:15.3]} 34... b4 {[%clk 0:02:36.6]}
35. f6+ {[%clk 0:03:14.6]} 35... Kxe6 {[%clk 0:02:34.6]} 36. f7 {[%clk
0:03:14.5]} 36... b3 {[%clk 0:02:32.8]} 37. f8=Q {[%clk 0:03:14]} 37... b2
{[%clk 0:02:32.5]} 38. Qxc5 {[%clk 0:03:11.7]} 38... b1=Q {[%clk 0:02:31.7]} 39.
Qxc6+ {[%clk 0:03:10.3]} 39... Ke7 {[%clk 0:02:30.6]} 40. Bf8+ {[%clk
0:03:07.1]} 40... Kd8 {[%clk 0:02:29.2]} 41. Rxb1 {[%clk 0:03:05.6]} 41... h5
{[%clk 0:02:27.9]} 42. Rb8# {[%clk 0:03:05.5]} 1-0

[Event "Live Chess"]
[Site "Chess.com"]
[Date "2024.06.01"]
[Round "-"]
[White "koekoekoe"]
[Black "Stanbad1"]
[Result "0-1"]
[WhiteElo "2088"]
[BlackElo "2687"]
[TimeControl "300"]
[EndTime "11:30:09 PDT"]
[Termination "Stanbad1 won on time"]

1. d4 {[%clk 0:04:58.2]} 1... Nf6 {[%clk 0:04:58.3]} 2. c4 {[%clk 0:04:56.8]}
2... c5 {[%clk 0:04:57]} 3. d5 {[%clk 0:04:54.3]} 3... b5 {[%clk 0:04:56.3]} 4.
b3 {[%clk 0:04:45.8]} 4... d6 {[%clk 0:04:51.7]} 5. Nd2 {[%clk 0:04:39.3]} 5...
g6 {[%clk 0:04:49.7]} 6. Bb2 {[%clk 0:04:38.6]} 6... Bg7 {[%clk 0:04:48.7]} 7.
e4 {[%clk 0:04:35.3]} 7... bxc4 {[%clk 0:04:47.5]} 8. bxc4 {[%clk 0:04:33]} 8...
O-O {[%clk 0:04:46.6]} 9. Ngf3 {[%clk 0:04:30.9]} 9... Nbd7 {[%clk 0:04:32.6]}
10. Bd3 {[%clk 0:04:30.1]} 10... a5 {[%clk 0:04:25.9]} 11. O-O {[%clk
0:04:28.2]} 11... Rb8 {[%clk 0:04:22.4]} 12. Bc3 {[%clk 0:04:14.4]} 12... Ba6
{[%clk 0:04:17.9]} 13. Rb1 {[%clk 0:04:12.5]} 13... Qc7 {[%clk 0:04:16.3]} 14.
Qa4 {[%clk 0:04:06.6]} 14... Rb4 {[%clk 0:04:13.3]} 15. Bxb4 {[%clk 0:04:02.1]}
15... cxb4 {[%clk 0:04:13.2]} 16. Rfc1 {[%clk 0:03:54.9]} 16... Nc5 {[%clk
0:04:11.2]} 17. Qc2 {[%clk 0:03:43.9]} 17... Nfd7 {[%clk 0:04:08.2]} 18. Nb3
{[%clk 0:03:29.9]} 18... Nxd3 {[%clk 0:04:00.3]} 19. Qxd3 {[%clk 0:03:26.7]}
19... a4 {[%clk 0:03:56.1]} 20. Nbd2 {[%clk 0:03:23]} 20... Nc5 {[%clk
0:03:53.9]} 21. Qc2 {[%clk 0:03:03.8]} 21... Rb8 {[%clk 0:03:45.3]} 22. Ne1
{[%clk 0:02:57.4]} 22... Bh6 {[%clk 0:03:38.7]} 23. f3 {[%clk 0:02:52.2]} 23...
Qa7 {[%clk 0:03:26.8]} 24. Kf1 {[%clk 0:02:44.6]} 24... Be3 {[%clk 0:03:05.6]}
25. Nd3 {[%clk 0:02:19.5]} 25... b3 {[%clk 0:03:01.4]} 26. Qc3 {[%clk
0:02:12.1]} 26... bxa2 {[%clk 0:02:58.3]} 27. Rxb8+ {[%clk 0:02:06]} 27... Qxb8
{[%clk 0:02:54]} 28. Nxc5 {[%clk 0:02:04.9]} 28... Bxc5 {[%clk 0:02:52.6]} 29.
Qa1 {[%clk 0:01:54.4]} 29... Qb4 {[%clk 0:02:45.1]} 30. Qxa2 {[%clk 0:01:50.9]}
30... Be3 {[%clk 0:02:41.8]} 31. Ke2 {[%clk 0:01:45]} 31... Bf4 {[%clk
0:02:38.1]} 32. g3 {[%clk 0:01:41.5]} 32... Bxd2 {[%clk 0:02:36]} 33. Qxd2
{[%clk 0:01:37.6]} 33... Bxc4+ {[%clk 0:02:34.7]} 34. Ke3 {[%clk 0:01:32.2]}
34... Qb5 {[%clk 0:02:31.2]} 35. Qc3 {[%clk 0:01:22.6]} 35... Bb3 {[%clk
0:02:28.2]} 36. Qc6 {[%clk 0:00:51.7]} 36... Qb4 {[%clk 0:02:21.3]} 37. Qe8+
{[%clk 0:00:46.9]} 37... Kg7 {[%clk 0:02:18.8]} 38. Qxe7 {[%clk 0:00:45.7]}
38... Qb6+ {[%clk 0:02:17.6]} 39. Kf4 {[%clk 0:00:41.3]} 39... Qf2 {[%clk
0:01:40.5]} 40. Rc7 {[%clk 0:00:26.7]} 40... Qd2+ {[%clk 0:01:38.9]} 41. Kg4
{[%clk 0:00:24.7]} 41... h5+ {[%clk 0:01:31.8]} 42. Kh3 {[%clk 0:00:19.4]} 42...
Bxd5 {[%clk 0:01:21.2]} 43. exd5 {[%clk 0:00:18.5]} 43... Qxd5 {[%clk
0:01:19.9]} 44. Ra7 {[%clk 0:00:14.6]} 44... Qf5+ {[%clk 0:01:17.9]} 45. Kg2
{[%clk 0:00:13.2]} 45... Qc2+ {[%clk 0:01:16.7]} 46. Kf1 {[%clk 0:00:12.4]}
46... Qd1+ {[%clk 0:01:13.9]} 47. Kf2 {[%clk 0:00:10.2]} 47... Qd4+ {[%clk
0:01:12.6]} 48. Qe3 {[%clk 0:00:09.4]} 48... Qb2+ {[%clk 0:01:11.2]} 49. Kg1
{[%clk 0:00:08.7]} 49... Qb1+ {[%clk 0:01:07.6]} 50. Kg2 {[%clk 0:00:08.3]}
50... Qc2+ {[%clk 0:01:07]} 51. Kh3 {[%clk 0:00:07.9]} 51... Qf5+ {[%clk
0:01:06]} 52. Kg2 {[%clk 0:00:07]} 52... g5 {[%clk 0:01:05.6]} 53. Qc3+ {[%clk
0:00:05.3]} 53... Kg6 {[%clk 0:01:04.2]} 54. Ra6 {[%clk 0:00:01.9]} 54... Qd5
{[%clk 0:01:02.3]} 55. Qc2+ {[%clk 0:00:00.7]} 55... Kf6 {[%clk 0:01:01]} 56.
Qxa4 {[%clk 0:00:00.5]} 56... g4 {[%clk 0:00:59.7]} 57. Qc6 {[%clk 0:00:00.3]}
57... Qd2+ {[%clk 0:00:57.7]} 0-1

[Event "Live Chess"]
[Site "Chess.com"]
[Date "2024.06.01"]
[Round "-"]
[White "updatedopenings2024"]
[Black "sebmoran1"]
[Result "1-0"]
[WhiteElo "1941"]
[BlackElo "1510"]
[TimeControl "300"]
[EndTime "11:30:09 PDT"]
[Termination "updatedopenings2024 won by resignation"]

1. g3 {[%clk 0:04:58.4]} 1... Nf6 {[%clk 0:04:58.4]} 2. Bg2 {[%clk 0:04:58.3]}
2... g6 {[%clk 0:04:57.4]} 3. Nf3 {[%clk 0:04:58.2]} 3... Bg7 {[%clk 0:04:56.7]}
4. O-O {[%clk 0:04:56.5]} 4... O-O {[%clk 0:04:56.6]} 5. d4 {[%clk 0:04:48.1]}
5... c5 {[%clk 0:04:56.5]} 6. c4 {[%clk 0:04:48]} 6... cxd4 {[%clk 0:04:55.5]}
7. Nxd4 {[%clk 0:04:47.8]} 7... Nc6 {[%clk 0:04:52.8]} 8. Nc3 {[%clk 0:04:47.7]}
8... Ng4 {[%clk 0:04:48.1]} 9. Nxc6 {[%clk 0:04:45.8]} 9... bxc6 {[%clk
0:04:48]} 10. h3 {[%clk 0:04:43.8]} 10... Nf6 {[%clk 0:04:46.4]} 11. e4 {[%clk
0:04:41.8]} 11... Ne8 {[%clk 0:04:43.1]} 12. Qc2 {[%clk 0:04:40.6]} 12... Nc7
{[%clk 0:04:41.8]} 13. Rd1 {[%clk 0:04:38.3]} 13... Ba6 {[%clk 0:04:40.2]} 14.
b3 {[%clk 0:04:34.8]} 14... Ne6 {[%clk 0:04:36.7]} 15. Bb2 {[%clk 0:04:33]}
15... Nd4 {[%clk 0:04:34.6]} 16. Qd2 {[%clk 0:04:32.2]} 16... c5 {[%clk
0:04:29.7]} 17. Na4 {[%clk 0:04:31.4]} 17... Rc8 {[%clk 0:04:23.8]} 18. Nxc5
{[%clk 0:04:26.7]} 18... Qb6 {[%clk 0:04:02.1]} 19. Nxd7 {[%clk 0:04:22.2]}
19... Rfd8 {[%clk 0:03:49.3]} 20. Nxb6 {[%clk 0:04:00.9]} 20... axb6 {[%clk
0:03:42.8]} 21. Bxd4 {[%clk 0:03:59.3]} 21... Rxd4 {[%clk 0:03:37.2]} 22. Qxd4
{[%clk 0:03:59.2]} 22... Bxd4 {[%clk 0:03:35.4]} 23. Rxd4 {[%clk 0:03:59.1]} 1-0

[Event "Live Chess"]
[Site "Chess.com"]
[Date "2024.06.01"]
[Round "-"]
[White "nigelst"]
[Black "GEMdzq"]
[Result "0-1"]
[WhiteElo "1672"]
[BlackElo "2302"]
[TimeControl "300"]
[EndTime "11:30:15 PDT"]
[Termination "GEMdzq won by resignation"]

1. e4 {[%clk 0:04:57]} 1... Nf6 {[%clk 0:04:58]} 2. e5 {[%clk 0:04:55.2]} 2...
Nd5 {[%clk 0:04:57.6]} 3. d4 {[%clk 0:04:54.1]} 3... d6 {[%clk 0:04:56.9]} 4.
Bc4 {[%clk 0:04:25.7]} 4... Nb6 {[%clk 0:04:55.3]} 5. Bb3 {[%clk 0:04:24.7]}
5... g6 {[%clk 0:04:54.1]} 6. e6 {[%clk 0:04:18.6]} 6... Bxe6 {[%clk 0:04:50.9]}
7. Bxe6 {[%clk 0:04:16.6]} 7... fxe6 {[%clk 0:04:50.8]} 8. Nf3 {[%clk
0:04:14.5]} 8... Bg7 {[%clk 0:04:49.4]} 9. c3 {[%clk 0:04:11.2]} 9... O-O {[%clk
0:04:47.7]} 10. Qe2 {[%clk 0:04:10.2]} 10... Qd7 {[%clk 0:04:44]} 11. O-O {[%clk
0:04:05.8]} 11... Nc6 {[%clk 0:04:42.2]} 12. Re1 {[%clk 0:04:04.2]} 12... e5
{[%clk 0:04:40.6]} 13. dxe5 {[%clk 0:04:00.8]} 13... Nxe5 {[%clk 0:04:39.3]} 14.
Nxe5 {[%clk 0:03:59.4]} 14... Bxe5 {[%clk 0:04:38.9]} 15. Nd2 {[%clk 0:03:55.3]}
15... Rae8 {[%clk 0:04:32.8]} 16. Nf3 {[%clk 0:03:53.9]} 16... Bg7 {[%clk
0:04:31]} 17. Be3 {[%clk 0:03:42.1]} 17... e5 {[%clk 0:04:26.9]} 18. Bxb6 {[%clk
0:03:40.4]} 18... axb6 {[%clk 0:04:26.8]} 19. Rad1 {[%clk 0:03:35.4]} 19... Qf5
{[%clk 0:04:25.6]} 20. Rd5 {[%clk 0:03:26.5]} 20... h6 {[%clk 0:04:19.4]} 21.
Nd4 {[%clk 0:03:20.6]} 21... Qf7 {[%clk 0:04:18.3]} 22. Rb5 {[%clk 0:03:11.5]}
22... exd4 {[%clk 0:04:17.2]} 23. Qf1 {[%clk 0:03:09.3]} 23... Rxe1 {[%clk
0:04:13.6]} 24. Qxe1 {[%clk 0:03:07.4]} 24... dxc3 {[%clk 0:04:13]} 25. bxc3
{[%clk 0:03:04.6]} 25... Bxc3 {[%clk 0:04:12.1]} 0-1

[Event "Live Chess"]
[Site "Chess.com"]
[Date "2024.06.01"]
[Round "-"]
[White "bobby_jamesFischer86"]
[Black "StoreySniper"]
[Result "0-1"]
[WhiteElo "1591"]
[BlackElo "2557"]
[TimeControl "300"]
[EndTime "11:30:21 PDT"]
[Termination "StoreySniper won by resignation"]

1. d4 {[%clk 0:04:54.4]} 1... Nf6 {[%clk 0:04:58]} 2. c4 {[%clk 0:04:53.1]} 2...
g6 {[%clk 0:04:56.7]} 3. Nc3 {[%clk 0:04:51]} 3... Bg7 {[%clk 0:04:56.2]} 4. e4
{[%clk 0:04:49.8]} 4... O-O {[%clk 0:04:55.7]} 5. Nf3 {[%clk 0:04:48.4]} 5... d6
{[%clk 0:04:55.3]} 6. Be2 {[%clk 0:04:47]} 6... e5 {[%clk 0:04:54.2]} 7. dxe5
{[%clk 0:04:45.3]} 7... dxe5 {[%clk 0:04:53.2]} 8. Qxd8 {[%clk 0:04:43]} 8...
Rxd8 {[%clk 0:04:52.5]} 9. O-O {[%clk 0:04:41.3]} 9... c6 {[%clk 0:04:47.8]} 10.
h3 {[%clk 0:04:38.4]} 10... Re8 {[%clk 0:04:46.9]} 11. Be3 {[%clk 0:04:36.1]}
11... Nfd7 {[%clk 0:04:34.3]} 12. b4 {[%clk 0:04:30]} 12... Nf8 {[%clk
0:04:31.8]} 13. Rad1 {[%clk 0:04:26.4]} 13... Ne6 {[%clk 0:04:30.1]} 14. a3
{[%clk 0:04:23.1]} 14... Na6 {[%clk 0:04:25.6]} 15. c5 {[%clk 0:04:16]} 15...
Nac7 {[%clk 0:04:23.8]} 16. Bc4 {[%clk 0:04:10.4]} 16... b5 {[%clk 0:04:13.8]}
17. Bb3 {[%clk 0:03:59.9]} 17... a5 {[%clk 0:04:11.8]} 18. Ra1 {[%clk
0:03:53.1]} 18... Nd4 {[%clk 0:04:06.4]} 19. Bd1 {[%clk 0:03:31.9]} 19... axb4
{[%clk 0:04:01.3]} 20. Ne2 {[%clk 0:03:27.8]} 20... Nxf3+ {[%clk 0:03:52.8]} 21.
gxf3 {[%clk 0:03:25.9]} 21... Rxa3 {[%clk 0:03:50.1]} 22. Rxa3 {[%clk
0:03:23.1]} 22... bxa3 {[%clk 0:03:48.9]} 23. Bb3 {[%clk 0:03:21.9]} 23... Be6
{[%clk 0:03:46.6]} 24. Bxe6 {[%clk 0:03:19.2]} 24... Nxe6 {[%clk 0:03:45.8]} 25.
Ra1 {[%clk 0:03:17.6]} 25... b4 {[%clk 0:03:37]} 26. Bd2 {[%clk 0:03:16.2]}
26... Rb8 {[%clk 0:03:33.3]} 27. Nc1 {[%clk 0:03:14.1]} 27... Nxc5 {[%clk
0:03:31.2]} 28. Rb1 {[%clk 0:03:06.6]} 28... b3 {[%clk 0:03:27.9]} 29. Be3
{[%clk 0:03:02.2]} 29... a2 {[%clk 0:03:26.4]} 0-1

[Event "Live Chess"]
[Site "Chess.com"]
[Date "2024.06.01"]
[Round "-"]
[White "Crowded_House"]
[Black "FlyingChessKestrel13"]
[Result "0-1"]
[WhiteElo "1755"]
[BlackElo "2093"]
[TimeControl "300"]
[EndTime "11:30:31 PDT"]
[Termination "FlyingChessKestrel13 won by resignation"]

1. d4 {[%clk 0:04:57.7]} 1... d5 {[%clk 0:04:59.7]} 2. Bg5 {[%clk 0:04:55.7]}
2... h6 {[%clk 0:04:57.3]} 3. Bh4 {[%clk 0:04:53.6]} 3... g5 {[%clk 0:04:56]} 4.
Bg3 {[%clk 0:04:52]} 4... Bg7 {[%clk 0:04:55.3]} 5. c3 {[%clk 0:04:50.5]} 5...
c5 {[%clk 0:04:53.6]} 6. dxc5 {[%clk 0:04:47.3]} 6... Nc6 {[%clk 0:04:52.3]} 7.
e3 {[%clk 0:04:45.9]} 7... e5 {[%clk 0:04:49.7]} 8. Nf3 {[%clk 0:04:40.1]} 8...
Be6 {[%clk 0:04:48.2]} 9. Nbd2 {[%clk 0:04:34.7]} 9... Nge7 {[%clk 0:04:44.1]}
10. Nb3 {[%clk 0:04:32.4]} 10... Nf5 {[%clk 0:04:38.1]} 11. Be2 {[%clk
0:04:29.9]} 11... Nxg3 {[%clk 0:04:36.4]} 12. hxg3 {[%clk 0:04:29.2]} 12... Qe7
{[%clk 0:04:32.6]} 13. O-O {[%clk 0:04:26.9]} 13... a5 {[%clk 0:04:31.2]} 14.
Bb5 {[%clk 0:04:21.3]} 14... a4 {[%clk 0:04:29.1]} 15. Nbd2 {[%clk 0:04:13.9]}
15... Qxc5 {[%clk 0:04:26.8]} 16. Bxc6+ {[%clk 0:04:08.9]} 16... bxc6 {[%clk
0:04:21.6]} 17. Re1 {[%clk 0:03:54]} 17... O-O {[%clk 0:04:18.5]} 18. Qc1 {[%clk
0:03:51.2]} 18... a3 {[%clk 0:04:16.8]} 19. bxa3 {[%clk 0:03:46.7]} 19... Qxa3
{[%clk 0:04:13.1]} 20. Qxa3 {[%clk 0:03:44.4]} 20... Rxa3 {[%clk 0:04:11.4]} 21.
Nb3 {[%clk 0:03:38.5]} 21... Rfa8 {[%clk 0:04:09.8]} 22. Re2 {[%clk 0:03:36.5]}
22... e4 {[%clk 0:04:08.4]} 23. Nfd4 {[%clk 0:03:34.1]} 23... Bxd4 {[%clk
0:04:07.3]} 24. cxd4 {[%clk 0:03:29.3]} 24... Rxb3 {[%clk 0:04:03.4]} 25. a4
{[%clk 0:03:16.8]} 25... Ra5 {[%clk 0:03:57.6]} 26. Rc2 {[%clk 0:03:14.8]} 26...
Bd7 {[%clk 0:03:55.4]} 27. Rca2 {[%clk 0:03:07.4]} 27... Rb4 {[%clk 0:03:54.1]}
28. Kf1 {[%clk 0:03:02.1]} 28... c5 {[%clk 0:03:53]} 29. dxc5 {[%clk 0:03:00.7]}
29... Rbxa4 {[%clk 0:03:51.7]} 30. Rxa4 {[%clk 0:02:58.7]} 30... Rxa4 {[%clk
0:03:51]} 31. Rc1 {[%clk 0:02:51.8]} 31... Rc4 {[%clk 0:03:49.5]} 32. Rxc4
{[%clk 0:02:47]} 32... dxc4 {[%clk 0:03:48.3]} 33. Ke2 {[%clk 0:02:45.9]} 33...
Kf8 {[%clk 0:03:44.8]} 34. Kd2 {[%clk 0:02:45.1]} 34... Ke8 {[%clk 0:03:44.1]}
35. Kc3 {[%clk 0:02:44.8]} 35... Be6 {[%clk 0:03:42.9]} 36. Kd4 {[%clk
0:02:42.2]} 36... f5 {[%clk 0:03:41.3]} 37. f3 {[%clk 0:02:40]} 37... exf3
{[%clk 0:03:38.9]} 38. gxf3 {[%clk 0:02:38.9]} 38... Kd7 {[%clk 0:03:38.5]} 39.
f4 {[%clk 0:02:32.4]} 39... gxf4 {[%clk 0:03:36.5]} 40. exf4 {[%clk 0:02:30.4]}
40... Kc6 {[%clk 0:03:35.9]} 41. Ke5 {[%clk 0:02:24]} 41... c3 {[%clk
0:03:34.3]} 42. Kxe6 {[%clk 0:02:22.7]} 42... c2 {[%clk 0:03:33.7]} 43. Kxf5
{[%clk 0:02:22.4]} 43... c1=Q {[%clk 0:03:33.2]} 44. Kg6 {[%clk 0:02:21.4]}
44... Qxc5 {[%clk 0:03:31.9]} 45. Kxh6 {[%clk 0:02:20.7]} 45... Qf5 {[%clk
0:03:31.4]} 0-1

[Event "Live Chess"]
[Site "Chess.com"]
[Date "2024.06.01"]
[Round "-"]
[White "educatedlad"]
[Black "Mangoalo"]
[Result "1-0"]
[WhiteElo "1762"]
[BlackElo "1009"]
[TimeControl "300"]
[EndTime "11:30:37 PDT"]
[Termination "educatedlad won by resignation"]

1. d4 {[%clk 0:04:58.8]} 1... Nc6 {[%clk 0:04:59.5]} 2. d5 {[%clk 0:04:57.1]}
2... Nb8 {[%clk 0:04:57.6]} 3. Nf3 {[%clk 0:04:56]} 3... Nf6 {[%clk 0:04:57.5]}
4. Nc3 {[%clk 0:04:53.9]} 4... e6 {[%clk 0:04:57.4]} 5. dxe6 {[%clk 0:04:52.9]}
5... dxe6 {[%clk 0:04:57.3]} 6. Qxd8+ {[%clk 0:04:51.3]} 6... Kxd8 {[%clk
0:04:57.2]} 7. Bg5 {[%clk 0:04:50.2]} 7... Nc6 {[%clk 0:04:57.1]} 8. O-O-O+
{[%clk 0:04:47.1]} 8... Bd7 {[%clk 0:04:55.4]} 9. Nb5 {[%clk 0:04:47]} 9... Be7
{[%clk 0:04:51]} 10. e3 {[%clk 0:04:43.7]} 10... h6 {[%clk 0:04:48.5]} 11. Bf4
{[%clk 0:04:41.6]} 11... Nd5 {[%clk 0:04:41.3]} 12. Rxd5 {[%clk 0:04:36.1]}
12... exd5 {[%clk 0:04:40]} 13. Nxc7 {[%clk 0:04:32.4]} 13... Rc8 {[%clk
0:04:37.8]} 14. Nxd5 {[%clk 0:04:31.5]} 14... Bg5 {[%clk 0:04:32.9]} 15. Nxg5
{[%clk 0:04:25.5]} 15... hxg5 {[%clk 0:04:32.8]} 16. Bxg5+ {[%clk 0:04:24.9]}
16... f6 {[%clk 0:04:31.2]} 17. Bf4 {[%clk 0:04:24.2]} 1-0

[Event "Live Chess"]
[Site "Chess.com"]
[Date "2024.06.01"]
[Round "-"]
[White "viktor_forever1994"]
[Black "hisaveliy"]
[Result "1-0"]
[WhiteElo "1390"]
[BlackElo "633"]
[TimeControl "300"]
[EndTime "11:30:38 PDT"]
[Termination "viktor_forever1994 won by checkmate"]

1. e4 {[%clk 0:04:58.7]} 1... d6 {[%clk 0:04:58.5]} 2. d4 {[%clk 0:04:57.3]}
2... Nf6 {[%clk 0:04:56.7]} 3. Nc3 {[%clk 0:04:55.6]} 3... g6 {[%clk 0:04:55.3]}
4. Nf3 {[%clk 0:04:50.5]} 4... Bg7 {[%clk 0:04:53.6]} 5. Bc4 {[%clk 0:04:41.1]}
5... O-O {[%clk 0:04:51.9]} 6. O-O {[%clk 0:04:39.4]} 6... c6 {[%clk 0:04:46.1]}
7. h3 {[%clk 0:04:37.9]} 7... b5 {[%clk 0:04:44.6]} 8. Bb3 {[%clk 0:04:34]} 8...
b4 {[%clk 0:04:40.9]} 9. Ne2 {[%clk 0:04:31.3]} 9... a5 {[%clk 0:04:28.9]} 10.
Ng3 {[%clk 0:04:25.4]} 10... a4 {[%clk 0:04:23.5]} 11. Bc4 {[%clk 0:04:22.1]}
11... d5 {[%clk 0:04:15.7]} 12. exd5 {[%clk 0:04:22]} 12... cxd5 {[%clk
0:04:14.5]} 13. Bd3 {[%clk 0:04:10.9]} 13... Nc6 {[%clk 0:04:04.2]} 14. Re1
{[%clk 0:04:07.4]} 14... Bd7 {[%clk 0:03:43.8]} 15. Bg5 {[%clk 0:03:59.8]} 15...
Qc8 {[%clk 0:03:40.6]} 16. Bb5 {[%clk 0:03:55.3]} 16... Ng4 {[%clk 0:03:11.1]}
17. Bxc6 {[%clk 0:03:37.8]} 17... Bxc6 {[%clk 0:03:01.2]} 18. hxg4 {[%clk
0:03:29.5]} 18... Qxg4 {[%clk 0:02:56]} 19. Bxe7 {[%clk 0:03:25.9]} 19... Rfe8
{[%clk 0:02:47.4]} 20. Bxb4 {[%clk 0:03:24.4]} 20... Rxe1+ {[%clk 0:02:44.4]}
21. Qxe1 {[%clk 0:03:11.4]} 21... Bxd4 {[%clk 0:02:40]} 22. Nxd4 {[%clk
0:03:08]} 22... Qxd4 {[%clk 0:02:39]} 23. Bc3 {[%clk 0:03:06]} 23... Qc4 {[%clk
0:02:28.8]} 24. Qe5 {[%clk 0:03:00.1]} 24... Re8 {[%clk 0:02:23.1]} 25. Qg7#
{[%clk 0:02:57.6]} 1-0